{"text_format":"3","workbook":"xlsx","n_sheets":2,"sheets":["נתוני גדילה","תרשים גדילה"],"not_rendered":{"charts":1,"defined_names":3},"read":"whole","date_system":"1900"}

{"sheet":"נתוני גדילה","index":0,"n_rows":23,"n_cols":8,"rows_kept":23,"merged":[[0,1,0,7],[1,2,1,7]]}
[null,"גדילת תינוק "]
[null,"שם התינוק:","שם"]
[null,"גיל","ליברות","אונקיות","משקל (ליברות)","משקל\nאחוזון","גובה (אינץ')","גובה\nאחוזון"]
[null,"בלידה",7,null,{"$f":"IF(COUNT(נתונים[[#This Row],[ליברות]:[אונקיות]])>0,נתונים[[#This Row],[ליברות]]+(נתונים[[#This Row],[אונקיות]]/16),NA())","v":7},40,19.5,70]
[null,"4 ימים",6,8,{"$f":"IF(COUNT(נתונים[[#This Row],[ליברות]:[אונקיות]])>0,נתונים[[#This Row],[ליברות]]+(נתונים[[#This Row],[אונקיות]]/16),NA())","v":6.5},41,19.5,70]
[null,"7 ימים",6,4.8,{"$f":"IF(COUNT(נתונים[[#This Row],[ליברות]:[אונקיות]])>0,נתונים[[#This Row],[ליברות]]+(נתונים[[#This Row],[אונקיות]]/16),NA())","v":6.3},42,20,71]
[null,"11 ימים",6,9.6,{"$f":"IF(COUNT(נתונים[[#This Row],[ליברות]:[אונקיות]])>0,נתונים[[#This Row],[ליברות]]+(נתונים[[#This Row],[אונקיות]]/16),NA())","v":6.6},43,20,71]
[null,"14 ימים",7,null,{"$f":"IF(COUNT(נתונים[[#This Row],[ליברות]:[אונקיות]])>0,נתונים[[#This Row],[ליברות]]+(נתונים[[#This Row],[אונקיות]]/16),NA())","v":7},44,20,71]
[null,"18 ימים",7,12,{"$f":"IF(COUNT(נתונים[[#This Row],[ליברות]:[אונקיות]])>0,נתונים[[#This Row],[ליברות]]+(נתונים[[#This Row],[אונקיות]]/16),NA())","v":7.75},45,21,72]
[null,"21 ימים",8,8,{"$f":"IF(COUNT(נתונים[[#This Row],[ליברות]:[אונקיות]])>0,נתונים[[#This Row],[ליברות]]+(נתונים[[#This Row],[אונקיות]]/16),NA())","v":8.5},46,21,72]
[null,"25 ימים",null,null,{"$f":"IF(COUNT(נתונים[[#This Row],[ליברות]:[אונקיות]])>0,נתונים[[#This Row],[ליברות]]+(נתונים[[#This Row],[אונקיות]]/16),NA())","v":{"$error":"#N/A"}}]
[null,"28 ימים",null,null,{"$f":"IF(COUNT(נתונים[[#This Row],[ליברות]:[אונקיות]])>0,נתונים[[#This Row],[ליברות]]+(נתונים[[#This Row],[אונקיות]]/16),NA())","v":{"$error":"#N/A"}}]
[null,"5 שבועות",null,null,{"$f":"IF(COUNT(נתונים[[#This Row],[ליברות]:[אונקיות]])>0,נתונים[[#This Row],[ליברות]]+(נתונים[[#This Row],[אונקיות]]/16),NA())","v":{"$error":"#N/A"}}]
[null,"6 שבועות",null,null,{"$f":"IF(COUNT(נתונים[[#This Row],[ליברות]:[אונקיות]])>0,נתונים[[#This Row],[ליברות]]+(נתונים[[#This Row],[אונקיות]]/16),NA())","v":{"$error":"#N/A"}}]
[null,"7 שבועות",null,null,{"$f":"IF(COUNT(נתונים[[#This Row],[ליברות]:[אונקיות]])>0,נתונים[[#This Row],[ליברות]]+(נתונים[[#This Row],[אונקיות]]/16),NA())","v":{"$error":"#N/A"}}]
[null,"חודשיים",null,null,{"$f":"IF(COUNT(נתונים[[#This Row],[ליברות]:[אונקיות]])>0,נתונים[[#This Row],[ליברות]]+(נתונים[[#This Row],[אונקיות]]/16),NA())","v":{"$error":"#N/A"}}]
[null,"3 חודשים",null,null,{"$f":"IF(COUNT(נתונים[[#This Row],[ליברות]:[אונקיות]])>0,נתונים[[#This Row],[ליברות]]+(נתונים[[#This Row],[אונקיות]]/16),NA())","v":{"$error":"#N/A"}}]
[null,"6 חודשים",null,null,{"$f":"IF(COUNT(נתונים[[#This Row],[ליברות]:[אונקיות]])>0,נתונים[[#This Row],[ליברות]]+(נתונים[[#This Row],[אונקיות]]/16),NA())","v":{"$error":"#N/A"}}]
[null,"9 חודשים",null,null,{"$f":"IF(COUNT(נתונים[[#This Row],[ליברות]:[אונקיות]])>0,נתונים[[#This Row],[ליברות]]+(נתונים[[#This Row],[אונקיות]]/16),NA())","v":{"$error":"#N/A"}}]
[null,"12 חודשים",null,null,{"$f":"IF(COUNT(נתונים[[#This Row],[ליברות]:[אונקיות]])>0,נתונים[[#This Row],[ליברות]]+(נתונים[[#This Row],[אונקיות]]/16),NA())","v":{"$error":"#N/A"}}]
[null,"18 חודשים",null,null,{"$f":"IF(COUNT(נתונים[[#This Row],[ליברות]:[אונקיות]])>0,נתונים[[#This Row],[ליברות]]+(נתונים[[#This Row],[אונקיות]]/16),NA())","v":{"$error":"#N/A"}}]
[null,"24 חודשים",null,null,{"$f":"IF(COUNT(נתונים[[#This Row],[ליברות]:[אונקיות]])>0,נתונים[[#This Row],[ליברות]]+(נתונים[[#This Row],[אונקיות]]/16),NA())","v":{"$error":"#N/A"}}]
[null,"36 חודשים",null,null,{"$f":"IF(COUNT(נתונים[[#This Row],[ליברות]:[אונקיות]])>0,נתונים[[#This Row],[ליברות]]+(נתונים[[#This Row],[אונקיות]]/16),NA())","v":{"$error":"#N/A"}}]

{"sheet":"תרשים גדילה","index":1,"n_rows":1,"n_cols":2,"rows_kept":1,"merged":[[0,1,1,1]]}
[null,"תרשים גדילת תינוק"]